bitfinex-derivatives/quotes_ETHF0:USTF0_20250214
["timestamp","ask_amount","ask_price","bid_price","bid_amount"]
[1739506330975,0.00553332,2709.9,2709.5,0.5525]
[1739506331171,0.00553332,2709.9,2709.7,0.73797]
[1739506333682,0.00553332,2709.9,2709.6,0.738]
[1739506334580,0.73796,2709.8,2709.5,0.5525]
[1739506334882,0.74346332,2709.9,2709.5,1.29051]
[1739506335176,0.00553332,2709.9,2709.6,0.738]
[1739506335772,0.00553332,2709.9,2709.5,0.5525]
[1739506335978,0.73797,2709.8,2709.5,0.5525]
[1739506336484,2.88934839,2709.9,2709.4,0.00553332]
[1739506336485,3.94582,2709.6,2709.4,0.00553332]
[1739506336672,1.29744,2709.5,2709.4,0.00553332]
[1739506336872,1.1481,2709.5,2709.4,0.00553332]
[1739506341277,1.1481,2709.5,2709.4,0.74359332]
[1739506343483,1.1481,2709.5,2709.4,0.00553332]
[1739506344182,0.5887,2709.5,2709.4,0.74359332]
[1739506346784,3.2078,2709.6,2709.4,0.74359332]
[1739506348381,3.2078,2709.6,2709.4,0.00553332]
[1739506350587,6.09161507,2709.6,2709.4,0.00553332]
[1739506350883,6.09161507,2709.6,2708.6,0.00293816]
[1739506351089,3.2078,2708.8,2708.6,0.00293816]
[1739506351585,3.2078,2708.8,2708.6,0.74120816]
[1739506352083,3.2078,2708.8,2708.6,0.00293816]
[1739506353188,3.2078,2708.8,2708.6,0.74119816]
[1739506353389,3.2078,2708.8,2708.7,0.73826]
[1739506354684,3.2078,2709.1,2708.6,0.00293816]
[1739506354880,3.2078,2709.1,2709.0,0.73817]
[1739506355088,3.2078,2709.1,2708.6,0.00293816]
[1739506355482,3.2078,2709.1,2708.8,0.73821]
[1739506355893,3.2078,2709.1,2708.6,0.00293816]
[1739506356191,3.2078,2709.1,2708.9,0.73819]
[1739506356391,3.2078,2709.1,2709.0,1.33017]
[1739506357284,3.2078,2709.1,2709.0,0.592]
[1739506358486,3.2078,2709.1,2708.6,0.00293816]
[1739506358689,3.2078,2709.1,2708.8,0.73821]
[1739506358884,3.2078,2709.1,2708.6,0.59493816]
[1739506359084,3.2078,2709.1,2709.0,0.73817]
[1739506362598,3.2078,2709.1,2708.6,0.59493816]
[1739506362791,3.2078,2709.1,2708.9,0.7382]
[1739506363397,3.2078,2709.1,2708.8,0.73821]
[1739506363897,3.2078,2709.1,2708.9,0.73819]
[1739506365799,0.5942,2709.0,2708.7,0.73824]
[1739506365998,3.2078,2708.8,2708.6,0.59493816]
[1739506366190,3.2078,2708.8,2708.7,0.73826]
[1739506366392,0.5867,2708.9,2708.6,0.59493816]
[1739506366697,0.5867,2708.9,2708.8,0.73823]
[1739506368702,3.2078,2709.1,2709.0,0.73817]
[1739506373600,3.2078,2709.1,2708.6,0.59493816]
[1739506373903,3.2078,2709.1,2708.9,0.73818]
[1739506375607,4.5036881,2709.1,2708.6,0.59493816]
[1739506375901,1.2958881,2708.9,2708.7,0.73826]
[1739506376203,0.5467,2708.8,2708.7,0.73826]
[1739506377701,3.7545,2708.8,2708.7,0.73826]
[1739506377902,4.3233,2708.8,2708.7,0.73826]
[1739506378098,4.3233,2708.8,2708.6,0.74121816]
[1739506378306,0.5895,2708.7,2708.6,0.74121816]
[1739506379907,1.8853881,2708.7,2708.6,0.74121816]
[1739506380207,1.8853881,2708.7,2708.6,0.00293816]
[1739506381709,1.8853881,2708.7,2708.6,0.74121816]
[1739506382705,4.8638,2708.8,2708.7,0.73826]
[1739506382906,1.2958881,2708.9,2708.7,0.73824]
[1739506383308,1.2958881,2708.9,2708.6,0.74120816]
[1739506383609,1.2958881,2708.7,2708.6,0.74120816]
[1739506385008,3.2078,2708.8,2708.7,0.73826]
[1739506386105,3.2078,2708.8,2708.6,0.00293816]
[1739506386506,3.2078,2708.8,2708.7,0.73826]
[1739506387207,3.2078,2708.8,2708.7,1.31046]
[1739506393416,3.20494579,2708.8,2708.7,1.31046]
[1739506395609,3.20494579,2708.8,2708.7,0.5722]
[1739506395814,3.20494579,2708.8,2708.4,0.595]
[1739506396009,1.2958881,2708.7,2708.5,0.73829]
[1739506396216,1.8407881,2708.7,2708.5,0.73829]
[1739506396416,1.8407881,2708.7,2708.5,0.73831]
[1739506396610,1.8407881,2708.7,2708.4,0.595]
[1739506396808,1.8407881,2708.7,2708.4,1.33333]
[1739506397710,1.8407881,2708.7,2708.4,0.595]
[1739506397915,1.8407881,2708.7,2708.4,1.33334]
[1739506398719,1.2958881,2708.5,2708.4,1.33334]
[1739506399222,4.5036881,2708.5,2708.4,1.33334]
[1739506400117,4.5036881,2708.5,2708.4,0.595]
[1739506400712,4.5036881,2708.5,2707.8,4.5036881]
[1739506400918,1.2958881,2708.2,2708.1,0.5802]
[1739506401317,1.2958881,2708.2,2708.1,1.31862]
[1739506402214,1.2958881,2708.2,2708.1,0.5802]
[1739506402418,4.5036881,2708.2,2708.1,0.5802]
[1739506404427,4.5036881,2708.2,2707.9,1.86897]
[1739506404721,1.2958881,2708.0,2707.9,1.86897]
[1739506406424,1.2958881,2708.0,2707.7,0.5863]
[1739506406623,1.2958881,2707.8,2707.7,1.32483]
[1739506407428,1.2958881,2707.8,2707.7,0.5863]
[1739506407620,1.2958881,2707.8,2707.6,0.73854]
[1739506408830,1.2958881,2707.8,2707.5,3.7838]
[1739506409029,1.2958881,2707.8,2707.7,0.73853]
[1739506409425,1.2958881,2707.8,2707.5,3.7838]
[1739506409625,1.2958881,2707.8,2707.6,0.73854]
[1739506410227,1.2958881,2707.8,2707.5,0.73856]
[1739506410526,1.655,2707.8,2707.7,0.73851]
[1739506411126,1.655,2707.8,2707.7,1.31471]
[1739506412031,3.2078,2707.9,2707.8,0.7385]
[1739506412448,3.2078,2707.9,2707.8,1.8872]
[1739506413431,3.2078,2707.9,2707.8,1.1487]
[1739506413639,3.2078,2707.9,2707.8,1.8872]
[1739506414137,1.2958881,2708.0,2707.8,1.1487]
[1739506414331,1.2958881,2708.0,2707.9,0.73847]
[1739506414735,4.5036881,2708.2,2708.1,0.73842]
[1739506414934,4.5036881,2708.2,2708.0,0.73843]
[1739506415139,4.5036881,2708.2,2708.1,0.73842]
[1739506415437,3.2078,2708.2,2708.1,0.73842]
[1739506418533,0.00553332,2708.4,2708.3,0.73836]
[1739506419833,0.00553332,2708.4,2708.3,1.31186]
[1739506425337,0.00553332,2708.4,2708.2,1.27877]
[1739506425642,0.00553332,2708.4,2708.2,0.5404]
[1739506425843,0.00553332,2708.4,2708.3,0.73836]
[1739506428538,0.00553332,2708.4,2708.2,1.27878]
[1739506428740,0.00553332,2708.4,2708.3,0.73836]
[1739506431048,0.00553332,2708.4,2708.2,0.5404]
[1739506431249,0.00553332,2708.4,2708.3,0.73836]
[1739506432148,0.00553332,2708.4,2708.2,0.5404]
[1739506432546,0.00553332,2708.4,2708.3,0.73836]
[1739506433857,0.00553332,2708.4,2708.2,1.27878]
[1739506434150,3.21333332,2708.4,2708.2,1.27878]
[1739506434545,3.21333332,2708.4,2708.0,3.2078]
[1739506434745,3.21333332,2708.4,2707.9,0.5775]
[1739506435249,3.21333332,2708.4,2708.2,0.73839]
[1739506435551,3.95167332,2708.4,2707.9,0.5775]
[1739506435853,1.29664014,2708.3,2707.9,0.5775]
[1739506436150,1.29664014,2708.3,2708.2,0.73839]
[1739506437647,3.21333332,2708.4,2708.2,0.73839]
[1739506438652,3.21333332,2708.4,2708.1,0.7384]
[1739506438853,3.21333332,2708.4,2708.2,0.73839]
[1739506440354,3.21333332,2708.4,2708.2,0.73838]
[1739506441360,3.95168332,2708.4,2708.1,0.7384]
[1739506441743,3.21333332,2708.4,2707.9,0.5775]
[1739506441948,3.95167332,2708.4,2708.1,0.7384]
[1739506442242,3.21333332,2708.4,2707.9,0.5775]
[1739506442445,3.2078,2708.1,2708.0,0.73845]
[1739506447147,3.21333332,2708.4,2708.1,0.7384]
[1739506447355,3.21333332,2708.4,2708.2,0.73838]
[1739506448354,3.21333332,2708.4,2707.9,0.5775]
[1739506448555,3.21333332,2708.4,2708.3,0.73836]
[1739506448757,4.86733332,2708.4,2708.2,0.73838]
[1739506450059,3.21333332,2708.4,2708.2,0.73838]
[1739506450262,3.21333332,2708.4,2708.3,0.5469]
[1739506453052,3.21333332,2708.4,2708.3,1.28526]
[1739506456569,0.00553332,2708.4,2708.3,1.28526]
[1739506456763,0.00553332,2708.4,2708.3,2.43446]
[1739506461171,3.21333332,2708.4,2708.3,2.43446]
[1739506469259,3.21333332,2708.4,2708.0,1.29623119]
[1739506469467,3.21333332,2708.4,2708.3,0.73836]
[1739506469865,3.21333332,2708.4,2708.1,0.595]
[1739506470064,3.21333332,2708.4,2708.3,0.73836]
[1739506471367,3.21333332,2708.4,2708.1,0.595]
[1739506471368,3.21333332,2708.4,2708.2,1.87438]
[1739506471567,3.77403332,2708.4,2708.2,1.87438]
[1739506471861,3.77403332,2708.4,2708.2,0.73838]
[1739506472879,5.07026451,2708.4,2708.1,1.33342]
[1739506473374,5.07026451,2708.4,2708.1,0.595]
[1739506473580,5.07026451,2708.4,2708.1,1.33341]
[1739506474876,5.07026451,2708.4,2708.1,0.595]
[1739506475367,5.07026451,2708.4,2708.1,1.3334]
[1739506475773,5.07026451,2708.4,2708.1,0.595]
[1739506475973,5.07026451,2708.4,2708.2,0.73839]
[1739506476578,5.07026451,2708.4,2708.1,0.595]
[1739506476884,5.07026451,2708.4,2708.3,0.73836]
[1739506477180,5.07026451,2708.4,2708.2,0.73838]
[1739506478187,5.07026451,2708.4,2708.2,0.73839]
[1739506478882,5.07026451,2708.4,2708.3,0.73836]
[1739506479484,5.07026451,2708.4,2708.1,0.595]
[1739506479685,5.07026451,2708.4,2708.3,0.73836]
[1739506480688,4.50956451,2708.4,2708.3,0.73836]
[1739506481976,3.21333332,2708.4,2708.3,0.73836]
[1739506483084,3.21333332,2708.4,2708.2,1.84918]
[1739506483287,3.21333332,2708.4,2708.2,1.1108]
[1739506483682,3.21333332,2708.4,2708.3,0.73836]
[1739506485983,3.21333332,2708.4,2708.2,1.84918]
[1739506486183,3.21333332,2708.4,2708.3,0.73836]
[1739506491292,0.00553332,2708.4,2708.3,0.73836]
[1739506493296,1.30176451,2708.4,2708.2,0.73838]
[1739506493593,0.577,2708.3,2708.2,0.73838]
[1739506493790,1.1557,2708.3,2708.2,0.73838]
[1739506494191,1.1557,2708.3,2708.1,0.595]
[1739506494396,1.1557,2708.3,2708.1,1.33342]
[1739506495101,1.1557,2708.3,2708.1,0.595]
[1739506495298,1.29623119,2708.2,2707.9,0.73846]
[1739506495501,0.5899,2708.1,2707.9,1.33466]
[1739506500388,0.5899,2708.1,2707.9,0.5962]
[1739506500596,0.5899,2708.1,2707.7,3.2078]
[1739506500597,4.50403119,2708.0,2707.7,0.73853]
[1739506500894,0.5447,2707.9,2707.8,0.7385]
[1739506501693,0.5447,2707.9,2707.7,0.73851]
[1739506502113,0.5447,2707.9,2707.6,1.29623119]
[1739506502296,1.29623119,2707.8,2707.5,0.73858]
[1739506502496,0.5576,2707.7,2707.4,5.78122119]
[1739506502700,0.5576,2707.7,2707.5,0.73858]
[1739506503291,0.5576,2707.7,2707.4,5.04263119]
[1739506503496,0.5576,2707.7,2707.6,0.73856]
[1739506505899,0.5576,2707.7,2707.5,0.73857]
[1739506507601,1.29623119,2707.6,2707.5,0.73857]
[1739506508599,1.29623119,2707.6,2707.4,0.5386]
[1739506509003,1.29623119,2707.6,2707.1,3.2078]
[1739506509004,0.5798,2707.5,2707.1,3.2078]
[1739506509309,1.29623119,2707.4,2707.3,0.73862]
[1739506510199,1.29623119,2707.6,2707.2,1.7289]
[1739506510503,1.29623119,2707.6,2707.5,0.73857]
[1739506510804,3.7654,2707.7,2707.6,0.73856]
[1739506510805,3.2078,2707.7,2707.6,0.73856]
[1739506512895,4.50403119,2707.8,2707.7,0.73853]
[1739506515501,1.29623119,2708.0,2707.9,0.73845]
[1739506515903,3.2078,2708.1,2707.8,1.29623119]
[1739506516204,3.2078,2708.1,2708.0,0.73845]
[1739506516808,3.21333332,2708.4,2708.3,0.73836]
[1739506517506,3.21333332,2708.4,2708.3,1.85266]
[1739506517702,0.00553332,2708.4,2708.3,1.85266]
[1739506520610,3.2078,2709.0,2708.9,0.7382]
[1739506520803,4.50403119,2709.0,2708.6,4.50403119]
[1739506521004,4.50403119,2709.0,2708.7,0.73824]
[1739506521204,4.50403119,2709.0,2708.6,3.2078]
[1739506521413,4.50403119,2709.0,2708.9,0.7382]
[1739506522411,3.2078,2709.0,2708.9,0.7382]
[1739506522813,3.2078,2709.0,2708.9,1.328]
[1739506523107,3.2078,2709.0,2708.8,0.5882]
[1739506523316,4.50403119,2709.0,2708.8,0.5882]
[1739506523814,4.50403119,2709.0,2708.7,0.00553332]
[1739506524014,5.04253119,2709.0,2708.7,0.74377332]
[1739506524508,5.04253119,2709.0,2708.8,0.73822]
[1739506524708,5.04253119,2709.0,2708.9,0.7382]
[1739506525413,5.04253119,2709.0,2708.8,0.73821]
[1739506525613,5.04253119,2709.0,2708.7,0.00553332]
[1739506526219,3.2078,2709.0,2708.9,0.7382]
[1739506526718,3.2078,2709.0,2708.9,1.2908]
[1739506526916,3.2078,2709.0,2708.9,0.5526]
[1739506527114,3.2078,2709.0,2708.9,1.1392]
[1739506529210,3.2078,2709.0,2708.9,1.8774]
[1739506531521,1.87866451,2709.2,2708.9,1.8774]
[1739506531821,0.58243332,2709.2,2708.9,1.1392]
[1739506532020,0.58243332,2709.2,2709.0,0.73816]
[1739506533019,0.58243332,2709.2,2708.9,1.1392]
[1739506533821,0.58243332,2709.2,2709.1,0.73815]
[1739506534124,0.58243332,2709.2,2709.0,0.73816]
[1739506534731,0.58243332,2709.2,2708.9,1.1392]
[1739506534732,0.00553332,2709.2,2708.9,1.1392]
[1739506534917,0.00553332,2709.2,2709.1,3.63319852]
[1739506535324,0.00553332,2709.2,2709.1,41.53815]
[1739506535824,0.00553332,2709.2,2709.1,0.73815]
[1739506536317,0.00553332,2709.2,2708.9,4.347]
[1739506536522,0.00553332,2709.2,2709.1,0.73815]
[1739506536818,0.00553332,2709.2,2708.9,4.347]
[1739506536819,0.00553332,2709.2,2708.9,1.1392]
[1739506537019,0.00553332,2709.2,2709.0,0.73816]
[1739506538126,0.00553332,2709.2,2708.9,1.87739]
[1739506538329,0.00553332,2709.2,2708.9,0.5866]
[1739506539026,0.00553332,2709.2,2709.0,0.73816]
[1739506539423,0.00553332,2709.2,2708.9,0.5866]
[1739506539733,0.00553332,2709.2,2709.1,0.73815]
[1739506542925,3.2078,2709.6,2709.5,0.73804]
[1739506543433,3.2078,2709.6,2709.2,1.1542]
[1739506543626,3.2078,2709.6,2709.5,0.73804]
[1739506544632,3.2078,2709.6,2709.4,0.73805]
[1739506544833,4.2983,2709.6,2709.4,0.73805]
[1739506545034,4.2983,2709.6,2709.3,1.33218]
[1739506545237,5.03632,2709.6,2708.8,4.54504852]
[1739506545532,4.2983,2709.6,2709.3,0.73808]
[1739506545935,4.2983,2709.6,2709.2,0.73811]
[1739506546228,4.2983,2709.6,2708.9,1.7227]
[1739506546229,3.2078,2709.3,2708.9,1.1453]
[1739506546430,3.9459,2709.3,2708.9,0.7382]
[1739506546628,3.9459,2709.3,2709.0,0.73817]
[1739506546629,0.5574,2709.2,2709.0,0.73817]
[1739506546933,1.649,2709.5,2708.8,3.47244852]
[1739506547538,3.2078,2709.3,2709.0,0.73816]
[1739506547731,1.1575,2709.2,2709.0,0.73816]
[1739506547927,1.1575,2709.2,2708.8,3.47244852]
[1739506548235,1.1575,2709.2,2709.1,0.73815]
[1739506548440,3.2078,2709.3,2709.2,0.73812]
[1739506549329,0.00553332,2709.8,2709.2,0.73812]
[1739506549330,0.00553332,2709.8,2709.2,14.99789704]
[1739506549531,3.2078,2710.4,2709.7,2.89504852]
[1739506549834,3.2078,2710.4,2710.3,3.63286852]
[1739506550624,3.2078,2710.4,2710.3,2.89504852]
[1739506550833,3.2078,2710.4,2710.2,0.73783]
[1739506551027,3.2078,2710.4,2710.2,0.73784]
[1739506551336,3.2078,2710.4,2710.1,0.00553332]
[1739506551531,3.2078,2710.4,2710.2,0.73782]
[1739506551923,3.2078,2710.4,2710.1,0.74340332]
[1739506552128,3.2078,2710.4,2710.3,0.73782]
[1739506552530,0.00553332,2710.6,2710.5,0.73777]
[1739506559534,3.2078,2711.3,2710.5,0.73777]
[1739506559736,4.8558,2711.6,2711.3,0.73753]
[1739506560138,4.8558,2711.6,2711.5,0.73749]
[1739506560440,4.8558,2711.6,2711.4,0.73751]
[1739506560640,4.8558,2711.6,2711.5,0.73749]
[1739506561035,4.8558,2711.6,2711.4,0.73751]
[1739506561442,4.8558,2711.6,2711.3,3.63257852]
[1739506561642,4.8558,2711.6,2711.3,0.73754]
[1739506562138,4.8558,2711.6,2711.0,2.89504852]
[1739506562446,4.8558,2711.6,2711.4,0.73752]
[1739506562643,4.8558,2711.6,2711.0,2.89504852]
[1739506562943,4.8558,2711.6,2711.4,0.73751]
[1739506563137,4.8558,2711.6,2711.0,2.89504852]
[1739506563341,4.8558,2711.6,2711.4,0.7375]
[1739506563644,4.8558,2711.6,2711.0,2.89504852]
[1739506563850,4.8558,2711.6,2711.4,0.73752]
[1739506564452,4.8558,2711.6,2711.5,0.73749]
[1739506565745,4.8558,2711.6,2711.4,0.73751]
[1739506565940,4.8558,2711.6,2711.0,2.89504852]
[1739506566249,4.8558,2711.6,2711.5,0.73749]
[1739506567854,3.2078,2711.6,2711.5,0.73749]
[1739506571452,3.2078,2711.6,2711.0,2.89504852]
[1739506571654,0.5896,2711.5,2711.3,0.73754]
[1739506571955,0.5896,2711.5,2711.0,3.46094852]
[1739506572352,0.5896,2711.5,2711.3,0.73754]
[1739506573360,0.5896,2711.5,2711.4,0.73752]
[1739506574263,3.2078,2711.6,2711.5,0.73749]
[1739506574959,3.2078,2711.6,2711.5,1.30829]
[1739506575558,0.00553332,2711.8,2711.7,0.73744]
[1739506577663,0.00553332,2711.8,2711.6,3.63249852]
[1739506578157,0.00553332,2711.8,2711.5,3.95081332]
[1739506578457,0.00553332,2711.8,2711.6,0.73746]
[1739506578651,0.00553332,2711.8,2711.5,0.00553332]
[1739506578652,0.00553332,2711.8,2711.7,0.73744]
[1739506579258,0.00553332,2711.8,2711.6,0.73745]
[1739506579459,0.00553332,2711.8,2711.5,0.74301332]
[1739506579661,0.00553332,2711.8,2711.7,0.73744]
[1739506583170,0.56983332,2711.8,2711.7,0.73744]
[1739506586667,0.56983332,2711.8,2711.5,0.00553332]
[1739506586668,1.13593332,2711.8,2711.5,0.74301332]
[1739506587272,3.2078,2711.6,2711.5,0.00553332]
[1739506587663,3.94527,2711.6,2711.5,0.00553332]
[1739506589371,0.73756,2711.3,2710.9,0.73764]
[1739506589566,3.2078,2711.1,2710.7,3.45394852]
[1739506589766,0.5648,2711.0,2710.8,0.73767]
[1739506589963,0.5648,2711.0,2710.8,0.73766]
[1739506590268,0.5648,2711.0,2710.9,0.73766]
[1739506590665,0.5648,2711.0,2710.7,3.45394852]
[1739506590666,0.5648,2711.0,2710.8,0.73767]
[1739506590868,0.5648,2711.0,2710.7,3.45394852]
[1739506591067,1.1044,2711.0,2710.7,1.2966]
[1739506591264,1.1044,2711.0,2710.7,0.5589]
[1739506591468,1.1044,2711.0,2710.6,0.74326332]
[1739506591769,1.1044,2711.0,2710.7,0.73771]
[1739506591966,1.1044,2711.0,2710.6,0.00553332]
[1739506592270,0.5648,2711.0,2710.9,0.73766]
[1739506592863,3.2078,2711.1,2710.7,4.03444852]
[1739506593059,3.2078,2711.1,2711.0,0.73763]
[1739506593569,0.577,2711.3,2711.2,0.73758]
[1739506593570,3.2078,2711.3,2711.2,0.73758]
[1739506593767,3.2078,2711.6,2711.5,0.73749]
[1739506593962,3.2078,2711.6,2711.5,41.53749]
[1739506594163,0.00553332,2711.8,2711.5,40.8]
[1739506594372,0.00553332,2711.8,2711.7,3.63248852]
[1739506600080,0.00553332,2711.8,2711.7,2.89504852]
[1739506600282,0.00553332,2711.8,2711.4,2.89504852]
[1739506600577,0.00553332,2711.8,2711.5,0.73747]
[1739506600779,0.00553332,2711.8,2711.4,2.89504852]
[1739506600973,0.00553332,2711.8,2711.7,0.73744]
[1739506601175,0.00553332,2711.8,2711.4,2.89504852]
[1739506601374,0.00553332,2711.8,2711.6,0.73746]
[1739506601679,0.00553332,2711.8,2711.4,3.63256852]
[1739506602073,0.00553332,2711.8,2711.4,3.63255852]
[1739506602369,0.00553332,2711.8,2711.5,0.73748]
[1739506602574,0.00553332,2711.8,2711.4,2.89504852]
[1739506602879,0.00553332,2711.8,2711.6,0.73744]
[1739506603479,0.00553332,2711.8,2711.7,0.73744]
[1739506605776,3.21333332,2711.8,2711.7,0.73744]
[1739506607275,3.21333332,2711.8,2711.5,1.32838]
[1739506607475,0.5616,2711.7,2711.5,0.5909]
[1739506607777,0.5867,2711.6,2711.3,0.73754]
[1739506608089,0.5867,2711.6,2711.2,0.5909]
[1739506608383,0.5867,2711.6,2711.2,1.32846]
[1739506608784,0.5867,2711.6,2711.2,0.5909]
[1739506609085,0.5867,2711.6,2711.3,0.73755]
[1739506609675,3.94531,2711.5,2711.2,0.5909]
[1739506609875,3.94531,2711.5,2711.1,1.31889]
[1739506610079,3.2078,2711.5,2711.1,2.89504852]
[1739506610279,3.2078,2711.5,2711.4,3.63256852]
[1739506610585,0.00553332,2711.8,2711.7,0.73744]
[1739506610883,0.00553332,2711.8,2711.7,3.63248852]
[1739506613279,0.00553332,2711.8,2711.7,3.92272226]
[1739506616887,0.00805173,2711.8,2711.7,3.92272226]
[1739506617082,0.00805173,2711.8,2711.7,1.02767374]
[1739506617279,3.2078,2712.7,2711.8,1.84354]
[1739506617477,3.2078,2712.7,2712.6,0.73719]
[1739506617682,3.2078,2713.0,2712.6,0.73719]
[1739506617884,4.8538,2713.0,2712.6,0.73719]
[1739506618083,4.8538,2713.0,2712.4,2.89504852]
[1739506618289,4.8538,2713.0,2712.7,0.73716]
[1739506618487,4.85933332,2713.0,2712.6,0.73717]
[1739506618688,5.59642332,2713.0,2712.4,2.90058184]
[1739506618985,5.59642332,2713.0,2712.5,0.7372]
[1739506618986,4.85933332,2713.0,2712.5,0.7372]
[1739506619181,4.85933332,2713.0,2712.4,2.90058184]
[1739506619386,4.85933332,2713.0,2712.4,0.74277332]
[1739506619581,4.85933332,2713.0,2712.4,0.00553332]
[1739506619582,3.21333332,2713.0,2712.4,0.00553332]
[1739506619787,1.646,2712.9,2712.4,0.00553332]
[1739506620490,3.2078,2712.7,2712.4,0.00553332]
[1739506620688,0.73722,2712.5,2712.4,0.00553332]
[1739506620996,3.51411,2712.6,2712.4,0.00553332]
[1739506621188,0.5733,2712.5,2712.4,0.00553332]
[1739506621492,0.5733,2712.5,2712.4,0.74278332]
[1739506621692,3.2078,2712.7,2712.6,0.73719]
[1739506622987,0.5816,2712.9,2712.5,1.1476]
[1739506623189,1.1549,2712.9,2712.7,0.73715]
[1739506623589,1.1549,2712.9,2712.5,1.1476]
[1739506623983,1.1549,2712.9,2712.7,0.73715]
[1739506624184,1.1549,2712.9,2712.6,0.73718]
[1739506624483,3.2078,2712.7,2712.5,0.7372]
[1739506624677,3.2078,2712.7,2712.4,0.00553332]
[1739506624891,3.2078,2712.7,2712.6,0.73719]
[1739506625086,3.2078,2712.7,2712.4,0.00553332]
[1739506625290,3.2078,2712.7,2712.4,0.74276332]
[1739506625489,3.2078,2712.7,2712.4,0.00553332]
[1739506625987,0.73722,2712.5,2712.4,0.00553332]
[1739506626190,2.38322,2712.5,2712.4,0.00553332]
[1739506626491,2.97362,2712.5,2712.4,0.00553332]
[1739506628994,8.2364,2712.5,2711.9,0.73738]
[1739506629196,3.2078,2712.1,2711.8,1.8609]
[1739506629499,1.1377,2712.0,2711.8,1.8609]
[1739506630094,1.1377,2712.0,2711.9,0.73738]
[1739506630903,1.1377,2712.0,2711.8,1.1235]
[1739506631202,1.1377,2712.0,2711.6,0.74299332]
[1739506631203,3.52107,2712.0,2711.6,0.74299332]
[1739506631401,3.2078,2711.8,2711.6,0.74299332]
[1739506632096,3.2078,2711.8,2711.6,0.00553332]
[1739506632301,0.73744,2711.7,2711.6,0.00553332]
[1739506632499,3.2078,2711.8,2711.6,0.00553332]
[1739506632698,0.73744,2711.7,2711.6,0.00553332]
[1739506636613,3.94524,2711.8,2711.6,0.00553332]
[1739506637807,3.94523,2711.8,2711.6,0.00553332]
[1739506638009,3.2078,2711.8,2711.6,0.00553332]
[1739506638207,1.646,2711.7,2711.6,0.74298332]
[1739506639718,1.646,2711.7,2711.6,0.00553332]
[1739506639909,1.646,2711.7,2711.6,0.74300332]
[1739506640214,1.646,2711.7,2711.6,0.00553332]
[1739506640408,2.38344,2711.7,2711.6,0.00553332]
[1739506641312,1.646,2711.7,2711.6,0.00553332]
[1739506643211,1.646,2711.7,2711.6,0.74300332]
[1739506643713,3.2078,2711.8,2711.7,0.73744]
[1739506643917,4.8538,2711.8,2711.7,0.73744]
[1739506644119,4.8538,2711.8,2711.7,1.31254]
[1739506645117,3.2078,2711.8,2711.7,1.31254]
[1739506645416,0.583,2712.0,2711.7,0.5751]
[1739506645619,1.646,2712.0,2711.9,0.73738]
[1739506646613,3.2078,2712.1,2711.9,0.73738]
[1739506646813,3.2078,2712.1,2712.0,0.5435]
[1739506647618,3.2078,2712.1,2712.0,1.28086]
[1739506647814,3.2078,2712.1,2712.0,0.5435]
[1739506648517,3.2078,2712.1,2712.0,1.28086]
[1739506648719,3.2078,2712.1,2712.0,0.5435]
[1739506649622,3.2078,2712.1,2712.0,1.28086]
[1739506650118,3.2078,2712.1,2712.0,0.5435]
[1739506651110,3.94513,2712.1,2712.0,0.5435]
[1739506651315,3.2078,2712.1,2711.8,0.7374]
[1739506651621,3.2078,2712.1,2711.8,1.2922]
[1739506651824,3.7877,2712.1,2711.8,1.2922]
[1739506652019,3.7877,2712.1,2711.8,0.5548]
[1739506652420,3.2078,2712.1,2712.0,0.73736]
[1739506659022,3.2078,2712.4,2711.9,3.43334852]
[1739506659226,3.2078,2712.4,2712.2,0.73729]
[1739506660025,3.2078,2712.4,2711.9,3.43334852]
[1739506660219,3.2078,2712.4,2712.1,0.7373]
[1739506660827,3.2078,2712.4,2712.2,1.32329]
[1739506661522,3.2078,2712.4,2712.2,0.586]
[1739506661726,3.94506,2712.4,2712.2,0.586]
[1739506661926,1.32079,2712.3,2711.9,0.73737]
[1739506662128,3.2078,2712.1,2711.9,0.73737]
[1739506662321,0.563,2712.0,2711.9,0.73737]
[1739506662519,1.116,2712.0,2711.8,1.2922]
[1739506662924,1.116,2712.0,2711.8,0.5548]
[1739506663125,1.116,2712.0,2711.9,0.73738]
[1739506663721,1.116,2712.0,2711.8,1.2922]
[1739506664227,1.116,2712.0,2711.8,0.5548]
[1739506664530,1.116,2712.0,2711.8,0.73741]
[1739506664728,1.116,2712.0,2711.7,1.32342]
[1739506665824,0.7374,2711.9,2711.6,0.00553332]
[1739506666036,0.5503,2711.8,2711.6,0.00553332]
[1739506667631,0.5503,2711.8,2711.6,0.74299332]
[1739506667935,0.5503,2711.8,2711.6,0.00553332]
[1739506668433,3.49837,2712.0,2711.6,0.00553332]
[1739506668633,1.33058,2711.9,2711.6,0.00553332]
[1739506668828,3.2078,2711.7,2711.6,0.00553332]
[1739506669036,3.94524,2711.7,2711.6,0.00553332]
[1739506669334,3.2078,2711.7,2711.6,0.00553332]
[1739506669535,3.94524,2711.7,2711.6,0.00553332]
[1739506670436,3.2078,2711.7,2711.6,0.00553332]
[1739506671033,3.94524,2711.7,2711.6,0.00553332]
[1739506671533,3.2078,2711.7,2711.6,0.00553332]
[1739506671835,3.94524,2711.7,2711.6,0.00553332]
[1739506681645,3.94524,2711.7,2710.9,1.1487]
[1739506681646,9.2078,2711.7,2710.9,1.1487]
[1739506681847,3.2078,2711.1,2710.9,1.88635]
[1739506682042,0.5522,2711.0,2710.9,1.1487]
[1739506682449,0.5522,2711.0,2710.9,1.88636]
[1739506682644,0.5522,2711.0,2710.9,1.1487]
[1739506682951,0.5522,2711.0,2710.9,1.88636]
[1739506683147,3.2078,2711.1,2711.0,0.73763]
[1739506685853,3.2078,2711.1,2710.2,2.936]
[1739506685854,4.3428,2711.1,2709.8,6.10284852]
[1739506686047,3.2078,2710.5,2710.2,1.153]
[1739506686247,1.29741,2710.4,2710.2,0.5761]
[1739506686546,1.86541,2710.4,2710.2,0.5761]